{"text_format":"2","workbook":"xlsx","n_sheets":3,"sheets":["Sheet1","Sheet2","Sheet3"],"not_rendered":{"charts":0,"images":0,"macros":0,"external_links":0,"defined_names":0,"comments":0,"pivot_tables":0},"unopened":[],"bounds":{"document_bytes":16777216,"sheet_cells":100000,"run_cost":"one","rows_first":2000,"rows_last":500,"rows_between":2000,"halvings":0,"cell_chars":16384,"cell_head_chars":4096},"cells_cut":0,"cells_raw":0,"read":"whole","date_system":"1900"}

{"sheet":"Sheet1","index":0,"n_rows":22,"n_cols":7,"rows_kept":22,"cut":false,"hidden":false,"merged":[[0,2,0,4]]}
[null,null,"Shearers Dinner Bed and Breakfast"]
[null,"Low Season","High Season","Peak Season","Low Season","High Season","Peak Season"]
[null,"May 16 -Sep 16","Oct 16 - April 17","15 Dec - 15 Jan","May 17 - Sept 17","Oct 17 - Apr 18","15 Dec - 15 Jan"]
["Single",{"$f":"B5*2","v":2500},{"$f":"C5*2","v":2700},3100,2700,2900,3300]
["Per Person",1250,1350,1550,1350,1450,1650]
["Family Unit",{"$f":"B5*3","v":3750},{"$f":"C5*3","v":4050},4650,4050,4350,4950]
[null,"May - Aug 16",null,null,"May - Aug 17"]
[null,"Pay 2 Stay 3",null,null,"Pay 2 Stay 3"]
[]
[]
["Rates are Per person per night sharing"]
["Single supliment , add 30% to the per person sharing rate"]
["Inclutions are dinner ,bed and breakfast"]
["exclusions are any beverages,transfers.telephone calls, laundry and any items of personal nature"]
[]
[]
["Day Safari can be booked in advance ( 10 am - 3 pm)"]
["Inclusive of a 2 course lunch and selected local beverages"]
["Drive from 10am - 1.30pm "]
["Lunch from 1.30pm - 3pm"]
["Rate R980 per person"]
["Minimum of 2 Pax"]

{"sheet":"Sheet2","index":1,"n_rows":22,"n_cols":7,"rows_kept":22,"cut":false,"hidden":false,"merged":[[0,2,0,4]]}
[null,null,"Shearers Dinner Bed and Breakfast"]
[null,"Low Season","High Season","Peak Season","Low Season","High Season","Peak Season"]
[null,"May 19 -Sep 19","Oct 19 - April 20","15 Dec 19 - 15 Jan 20","May 20 - Sept 20","Oct 20 - Apr 21","15 Dec - 15 Jan 21"]
["Single",{"$f":"B5*2","v":2900},{"$f":"C5*2","v":3400},3840,3100,3600,3900]
["Per Person",1450,1700,1920,1550,1800,1950]
["Family Unit",{"$f":"B5*3","v":4350},{"$f":"C5*3","v":5100},5760,4650,5400,5850]
[null,"May - Aug 19",null,null,"May - Aug 20"]
[null,"Pay 2 Stay 3",null,null,"Pay 2 Stay 3"]
[]
[]
["Rates are Per person per night sharing"]
["Single supliment , add 30% to the per person sharing rate"]
["Inclutions are dinner ,bed and breakfast"]
["exclusions are any beverages,transfers.telephone calls, laundry and any items of personal nature"]
[]
[]
["Day Safari can be booked in advance ( 10 am - 3 pm)"]
["Inclusive of a 2 course lunch and selected local beverages"]
["Drive from 10am - 1.30pm "]
["Lunch from 1.30pm - 3pm"]
["Rate  R1200 per person for 2019 / R1350 per person for 2020"]
["Minimum of 2 Pax"]

{"sheet":"Sheet3","index":2,"n_rows":0,"n_cols":0,"rows_kept":0,"cut":false,"hidden":false,"merged":[]}